[Event "*** Titled Tuesday 3|2 Blitz"]
[Site "Chess.com"]
[Date "2016.02.02"]
[Round "4"]
[White "yurisolo"]
[Black "Mornar1951"]
[Result "1-0"]
[WhiteElo "2480"]
[BlackElo "2603"]
[TimeControl "180+2"]
[EndTime "17:45:27 PST"]
[Termination "yurisolo won by resignation"]

1. e4 {[%clk 0:03:01.9]} 1... e6 {[%clk 0:03:00.2]} 2. d4 {[%clk 0:03:02.8]}
2... d5 {[%clk 0:03:01.7]} 3. Nc3 {[%clk 0:03:04.5]} 3... Nf6 {[%clk 0:03:02.4]}
4. e5 {[%clk 0:03:05.5]} 4... Nfd7 {[%clk 0:03:03.6]} 5. f4 {[%clk 0:03:07.1]}
5... c5 {[%clk 0:03:05.2]} 6. Nf3 {[%clk 0:03:08.8]} 6... Nc6 {[%clk 0:03:06.3]}
7. Be3 {[%clk 0:03:10.4]} 7... Be7 {[%clk 0:03:07.6]} 8. Be2 {[%clk 0:03:10.2]}
8... O-O {[%clk 0:03:07.4]} 9. O-O {[%clk 0:03:10.2]} 9... b6 {[%clk 0:03:08.6]}
10. Qd2 {[%clk 0:03:10.5]} 10... f5 {[%clk 0:03:09]} 11. exf6 {[%clk 0:03:10.6]}
11... Nxf6 {[%clk 0:03:09.2]} 12. Bb5 {[%clk 0:03:12.1]} 12... Bb7 {[%clk
0:03:03.4]} 13. Bxc6 {[%clk 0:03:12.9]} 13... Bxc6 {[%clk 0:03:05.3]} 14. Ne5
{[%clk 0:03:14.3]} 14... Rc8 {[%clk 0:02:53.8]} 15. Rad1 {[%clk 0:03:00.7]}
15... Be8 {[%clk 0:02:51.6]} 16. h3 {[%clk 0:02:59.5]} 16... Nd7 {[%clk
0:02:49.5]} 17. Nxd7 {[%clk 0:02:44.4]} 17... Qxd7 {[%clk 0:02:45.9]} 18. Ne2
{[%clk 0:02:43.4]} 18... Bg6 {[%clk 0:02:39.7]} 19. c3 {[%clk 0:02:39.6]} 19...
c4 {[%clk 0:02:34.3]} 20. Rf2 {[%clk 0:02:14.2]} 20... b5 {[%clk 0:02:31.7]} 21.
a3 {[%clk 0:02:14.7]} 21... a5 {[%clk 0:02:31.9]} 22. g4 {[%clk 0:02:14.5]}
22... Bh4 {[%clk 0:02:29.9]} 23. Rh2 {[%clk 0:02:12.1]} 23... Rb8 {[%clk
0:02:19.1]} 24. Bf2 {[%clk 0:02:12.7]} 24... Be7 {[%clk 0:02:15.5]} 25. Bg3
{[%clk 0:02:13.7]} 25... b4 {[%clk 0:02:15.9]} 26. f5 {[%clk 0:02:13.9]} 26...
exf5 {[%clk 0:02:15.6]} 27. Bxb8 {[%clk 0:02:13.9]} 27... Rxb8 {[%clk
0:02:17.2]} 28. axb4 {[%clk 0:02:03.6]} 28... axb4 {[%clk 0:02:19.1]} 29. Nf4
{[%clk 0:01:39.5]} 29... Bf7 {[%clk 0:02:18.2]} 30. gxf5 {[%clk 0:01:29.9]}
30... Qxf5 {[%clk 0:02:17.2]} 31. Rf1 {[%clk 0:01:30.7]} 31... bxc3 {[%clk
0:02:09.5]} 32. bxc3 {[%clk 0:01:31.2]} 32... Bh4 {[%clk 0:01:57.1]} 33. Rg2
{[%clk 0:01:31.4]} 33... Rb1 {[%clk 0:01:51.9]} 34. Rxb1 {[%clk 0:01:23.1]}
34... Qxb1+ {[%clk 0:01:53.8]} 35. Kh2 {[%clk 0:01:24.7]} 35... Qf5 {[%clk
0:01:47.4]} 36. Qe3 {[%clk 0:01:20.4]} 36... Bf6 {[%clk 0:01:29.7]} 37. Qg3
{[%clk 0:01:09.8]} 37... h6 {[%clk 0:01:24.6]} 38. Qg4 {[%clk 0:01:08.3]} 38...
Qxg4 {[%clk 0:01:04.7]} 39. hxg4 {[%clk 0:01:08.7]} 39... Bg5 {[%clk 0:01:03]}
40. Kg3 {[%clk 0:01:08.5]} 40... Be7 {[%clk 0:00:58.2]} 41. Ra2 {[%clk
0:01:07.5]} 41... g5 {[%clk 0:00:54.2]} 42. Ng2 {[%clk 0:01:05]} 42... Bd6+
{[%clk 0:00:51.3]} 43. Kf2 {[%clk 0:01:06.1]} 43... Kf8 {[%clk 0:00:49.8]} 44.
Ne3 {[%clk 0:01:04.3]} 44... Bf4 {[%clk 0:00:43.3]} 45. Nf5 {[%clk 0:00:55.2]}
45... h5 {[%clk 0:00:16.8]} 46. Ra8+ {[%clk 0:00:53.3]} 46... Be8 {[%clk
0:00:18.4]} 47. gxh5 {[%clk 0:00:53.8]} 47... Kf7 {[%clk 0:00:16]} 48. h6 {[%clk
0:00:48.8]} 48... Kg6 {[%clk 0:00:14.4]} 49. Rxe8 {[%clk 0:00:48.2]} 1-0

[Event "*** Titled Tuesday 3|2 Blitz"]
[Site "Chess.com"]
[Date "2016.02.02"]
[Round "4"]
[White "Po6Don"]
[Black "davidarenas1224"]
[Result "0-1"]
[WhiteElo "2084"]
[BlackElo "2118"]
[TimeControl "180+2"]
[EndTime "17:45:36 PST"]
[Termination "davidarenas1224 won by checkmate"]

1. e4 {[%clk 0:03:01.9]} 1... c5 {[%clk 0:02:56.3]} 2. c3 {[%clk 0:03:02]} 2...
d5 {[%clk 0:02:54.1]} 3. exd5 {[%clk 0:03:02.9]} 3... Qxd5 {[%clk 0:02:56]} 4.
d4 {[%clk 0:03:04.4]} 4... g6 {[%clk 0:02:56.1]} 5. Nf3 {[%clk 0:03:01.1]} 5...
Bg7 {[%clk 0:02:53.2]} 6. c4 {[%clk 0:02:58.5]} 6... Qe4+ {[%clk 0:02:44.6]} 7.
Be3 {[%clk 0:02:55.4]} 7... Nc6 {[%clk 0:02:34.1]} 8. Nc3 {[%clk 0:02:53.7]}
8... Qg4 {[%clk 0:02:26.8]} 9. Nb5 {[%clk 0:02:43.6]} 9... Qd7 {[%clk
0:01:50.5]} 10. Bf4 {[%clk 0:02:30.9]} 10... e5 {[%clk 0:01:41.1]} 11. dxe5
{[%clk 0:02:12.6]} 11... Kf8 {[%clk 0:01:29.9]} 12. e6 {[%clk 0:01:24.4]} 12...
Qxd1+ {[%clk 0:00:56.6]} 13. Rxd1 {[%clk 0:01:26.3]} 13... Bxe6 {[%clk
0:00:58.1]} 14. Bd6+ {[%clk 0:01:11.8]} 14... Nge7 {[%clk 0:00:58.3]} 15. Be2
{[%clk 0:01:13.4]} 15... Bxb2 {[%clk 0:00:55.5]} 16. O-O {[%clk 0:01:14]} 16...
Kg7 {[%clk 0:00:53.8]} 17. Ng5 {[%clk 0:01:14.5]} 17... Bf5 {[%clk 0:00:48.4]}
18. Rfe1 {[%clk 0:01:08.1]} 18... Bf6 {[%clk 0:00:46.5]} 19. h4 {[%clk
0:01:05.3]} 19... h6 {[%clk 0:00:46.2]} 20. Nf3 {[%clk 0:01:03]} 20... b6 {[%clk
0:00:45.4]} 21. Bd3 {[%clk 0:00:46]} 21... Rad8 {[%clk 0:00:32.1]} 22. Be4
{[%clk 0:00:33.1]} 22... Bxe4 {[%clk 0:00:29.2]} 23. Rxe4 {[%clk 0:00:34.2]}
23... Nf5 {[%clk 0:00:30.3]} 24. g4 {[%clk 0:00:29.8]} 24... Nxh4 {[%clk
0:00:16.2]} 25. Nxh4 {[%clk 0:00:30.3]} 25... Bxh4 {[%clk 0:00:18.1]} 26. Ree1
{[%clk 0:00:11.4]} 26... a6 {[%clk 0:00:18.3]} 27. Nc7 {[%clk 0:00:11.7]} 27...
Nd4 {[%clk 0:00:17.2]} 28. Kg2 {[%clk 0:00:10.5]} 28... Bf6 {[%clk 0:00:17.3]}
29. Bg3 {[%clk 0:00:09.2]} 29... b5 {[%clk 0:00:14.7]} 30. cxb5 {[%clk
0:00:07.4]} 30... axb5 {[%clk 0:00:16.6]} 31. Nd5 {[%clk 0:00:08.7]} 31... Rxd5
{[%clk 0:00:16.3]} 32. a4 {[%clk 0:00:10.2]} 32... bxa4 {[%clk 0:00:15.3]} 33.
f4 {[%clk 0:00:11.6]} 33... Ra8 {[%clk 0:00:15.5]} 34. f5 {[%clk 0:00:12.6]}
34... gxf5 {[%clk 0:00:15.7]} 35. Kh3 {[%clk 0:00:13.8]} 35... fxg4+ {[%clk
0:00:16.1]} 36. Kxg4 {[%clk 0:00:15.7]} 36... a3 {[%clk 0:00:18]} 37. Ra1 {[%clk
0:00:13.4]} 37... a2 {[%clk 0:00:19.4]} 38. Bf4 {[%clk 0:00:14]} 38... Nc2
{[%clk 0:00:19.2]} 39. Rg1 {[%clk 0:00:13.9]} 39... Nxa1 {[%clk 0:00:19.7]} 40.
Kf3+ {[%clk 0:00:14]} 40... Bg5 {[%clk 0:00:18.7]} 41. Ke4 {[%clk 0:00:14.4]}
41... Rd4+ {[%clk 0:00:19]} 42. Kf5 {[%clk 0:00:15.5]} 42... Rxf4+ {[%clk
0:00:20.7]} 43. Ke5 {[%clk 0:00:15.4]} 43... Nb3 {[%clk 0:00:21.9]} 44. Kd5
{[%clk 0:00:14.4]} 44... a1=Q {[%clk 0:00:22.9]} 45. Kc6 {[%clk 0:00:15.3]}
45... Qa6+ {[%clk 0:00:20.4]} 46. Kd5 {[%clk 0:00:16.4]} 46... Rd8+ {[%clk
0:00:20.9]} 47. Ke5 {[%clk 0:00:17.2]} 47... Qe6# {[%clk 0:00:22.3]} 0-1

[Event "*** Titled Tuesday 3|2 Blitz"]
[Site "Chess.com"]
[Date "2016.02.02"]
[Round "4"]
[White "chesstatour"]
[Black "brauliocuarta"]
[Result "0-1"]
[WhiteElo "1957"]
[BlackElo "1969"]
[TimeControl "180+2"]
[EndTime "17:46:08 PST"]
[Termination "brauliocuarta won by resignation"]

1. c4 {[%clk 0:03:01.9]} 1... Nf6 {[%clk 0:03:00.1]} 2. Nc3 {[%clk 0:03:03.8]}
2... c5 {[%clk 0:03:01.5]} 3. Nf3 {[%clk 0:03:03.4]} 3... b6 {[%clk 0:03:01.5]}
4. d4 {[%clk 0:03:04.3]} 4... cxd4 {[%clk 0:03:01.3]} 5. Nxd4 {[%clk 0:03:06.2]}
5... Bb7 {[%clk 0:03:02.1]} 6. Bg5 {[%clk 0:02:52.6]} 6... Ne4 {[%clk
0:02:56.7]} 7. Nxe4 {[%clk 0:02:45.4]} 7... Bxe4 {[%clk 0:02:58.6]} 8. f3 {[%clk
0:02:46.8]} 8... Bb7 {[%clk 0:02:58.5]} 9. e4 {[%clk 0:02:48]} 9... h6 {[%clk
0:02:52.1]} 10. Bh4 {[%clk 0:02:36.7]} 10... g5 {[%clk 0:02:50.2]} 11. Bg3
{[%clk 0:02:29.3]} 11... Bg7 {[%clk 0:02:46.5]} 12. Be2 {[%clk 0:02:25.6]} 12...
Nc6 {[%clk 0:02:31.9]} 13. Nb5 {[%clk 0:02:04]} 13... d6 {[%clk 0:02:24.1]} 14.
O-O {[%clk 0:01:17.5]} 14... Bxb2 {[%clk 0:02:02.6]} 15. Rb1 {[%clk 0:01:12.2]}
15... Bg7 {[%clk 0:02:01.6]} 16. Bxd6 {[%clk 0:00:56.9]} 16... exd6 {[%clk
0:01:42.6]} 17. Nxd6+ {[%clk 0:00:52.2]} 17... Kf8 {[%clk 0:01:26.3]} 18. Nxb7
{[%clk 0:00:50.8]} 18... Bd4+ {[%clk 0:01:25.5]} 19. Kh1 {[%clk 0:00:48.3]}
19... Qc7 {[%clk 0:01:18.1]} 20. c5 {[%clk 0:00:41.3]} 20... Qxb7 {[%clk
0:01:14.2]} 21. cxb6 {[%clk 0:00:41.3]} 21... axb6 {[%clk 0:01:07.6]} 22. Bb5
{[%clk 0:00:41.9]} 22... Rd8 {[%clk 0:01:07.1]} 23. Qa4 {[%clk 0:00:27.7]} 23...
Na7 {[%clk 0:00:46.5]} 24. Ba6 {[%clk 0:00:17.5]} 24... Qe7 {[%clk 0:00:41.4]}
25. Rbd1 {[%clk 0:00:16.1]} 25... Qe5 {[%clk 0:00:23.4]} 26. Be2 {[%clk
0:00:10.5]} 26... Nc8 {[%clk 0:00:22.6]} 27. Qa3+ {[%clk 0:00:08.4]} 27... Kg7
{[%clk 0:00:22.8]} 28. g3 {[%clk 0:00:07.1]} 28... Ne7 {[%clk 0:00:21.4]} 29.
Qb3 {[%clk 0:00:07.3]} 29... Ng6 {[%clk 0:00:20.8]} 30. Qc2 {[%clk 0:00:08.2]}
30... h5 {[%clk 0:00:20.7]} 31. Qc1 {[%clk 0:00:08.9]} 31... h4 {[%clk
0:00:20.8]} 32. f4 {[%clk 0:00:10.3]} 32... gxf4 {[%clk 0:00:21]} 33. gxf4
{[%clk 0:00:12.2]} 33... Qxe4+ {[%clk 0:00:21.4]} 34. Bf3 {[%clk 0:00:13.8]}
34... Qxf4 {[%clk 0:00:19.1]} 35. Qc2 {[%clk 0:00:12.1]} 35... Qg5 {[%clk
0:00:16.7]} 36. Rd2 {[%clk 0:00:12]} 36... Be5 {[%clk 0:00:13.7]} 37. Rg2 {[%clk
0:00:12.1]} 37... Qf4 {[%clk 0:00:13.2]} 38. Be2 {[%clk 0:00:11.8]} 38... Qd4
{[%clk 0:00:10.2]} 39. Qf5 {[%clk 0:00:11.3]} 39... Qd7 {[%clk 0:00:08.2]} 40.
Qe4 {[%clk 0:00:10.9]} 40... Qd5 {[%clk 0:00:07.6]} 41. Qf5 {[%clk 0:00:10.3]}
41... Rh6 {[%clk 0:00:07.2]} 42. Bh5 {[%clk 0:00:09.6]} 42... h3 {[%clk
0:00:07.7]} 43. Rg1 {[%clk 0:00:08.9]} 43... hxg2+ {[%clk 0:00:08]} 44. Rxg2
{[%clk 0:00:10.8]} 44... Kh7 {[%clk 0:00:05.7]} 45. Bg4 {[%clk 0:00:09.9]} 45...
Kh8 {[%clk 0:00:04.7]} 46. h3 {[%clk 0:00:10.5]} 46... Nf4 {[%clk 0:00:05.7]}
47. Bf3 {[%clk 0:00:05]} 47... Qxf3 {[%clk 0:00:06.1]} 48. Qxe5+ {[%clk
0:00:06.3]} 48... f6 {[%clk 0:00:06.3]} 49. Qxf6+ {[%clk 0:00:02.1]} 49... Rxf6
{[%clk 0:00:06.5]} 0-1

[Event "*** Titled Tuesday 3|2 Blitz"]
[Site "Chess.com"]
[Date "2016.02.02"]
[Round "4"]
[White "BillieKimbah"]
[Black "Noukii"]
[Result "0-1"]
[WhiteElo "2497"]
[BlackElo "2713"]
[TimeControl "180+2"]
[EndTime "17:46:09 PST"]
[Termination "Noukii won by resignation"]

1. d4 {[%clk 0:03:00.4]} 1... d5 {[%clk 0:03:00.3]} 2. Nf3 {[%clk 0:03:01.7]}
2... Nf6 {[%clk 0:03:00.6]} 3. Bf4 {[%clk 0:03:02.4]} 3... c5 {[%clk 0:03:01.5]}
4. e3 {[%clk 0:03:03.1]} 4... Nc6 {[%clk 0:03:03.1]} 5. c3 {[%clk 0:03:03.6]}
5... e6 {[%clk 0:03:04.2]} 6. Nbd2 {[%clk 0:03:03.9]} 6... Bd6 {[%clk
0:03:05.7]} 7. Bg3 {[%clk 0:03:05]} 7... O-O {[%clk 0:03:06]} 8. Bd3 {[%clk
0:03:05.2]} 8... b6 {[%clk 0:03:07.4]} 9. e4 {[%clk 0:03:04.7]} 9... Be7 {[%clk
0:03:07.9]} 10. e5 {[%clk 0:03:04.1]} 10... Nh5 {[%clk 0:03:09.5]} 11. a3 {[%clk
0:02:59.6]} 11... a5 {[%clk 0:03:09]} 12. Qe2 {[%clk 0:02:58.1]} 12... f5 {[%clk
0:02:53.4]} 13. exf6 {[%clk 0:02:55.7]} 13... Bxf6 {[%clk 0:02:54.1]} 14. Ne5
{[%clk 0:02:48.7]} 14... Bxe5 {[%clk 0:02:55.2]} 15. Bxh7+ {[%clk 0:02:30.1]}
15... Kxh7 {[%clk 0:02:48.6]} 16. Qxh5+ {[%clk 0:02:30.4]} 16... Kg8 {[%clk
0:02:50.3]} 17. Bxe5 {[%clk 0:02:27.6]} 17... Rf5 {[%clk 0:02:51.6]} 18. Qe2
{[%clk 0:02:07.2]} 18... Nxe5 {[%clk 0:02:52.9]} 19. dxe5 {[%clk 0:02:07.9]}
19... Qg5 {[%clk 0:02:54.5]} 20. O-O-O {[%clk 0:01:54.3]} 20... Ba6 {[%clk
0:02:51]} 21. Qe3 {[%clk 0:01:44.6]} 21... Qxe3 {[%clk 0:02:51.7]} 22. fxe3
{[%clk 0:01:45.6]} 22... Rxe5 {[%clk 0:02:53.2]} 23. Rde1 {[%clk 0:01:44.8]}
23... Rf8 {[%clk 0:02:53.1]} 24. Nf3 {[%clk 0:01:43.9]} 24... Re4 {[%clk
0:02:46.2]} 25. h3 {[%clk 0:01:42]} 25... e5 {[%clk 0:02:29.5]} 26. Ng5 {[%clk
0:01:40.3]} 26... Rh4 {[%clk 0:02:27.6]} 27. Nf3 {[%clk 0:01:41]} 27... Rh5
{[%clk 0:02:01.6]} 28. g4 {[%clk 0:01:31.7]} 28... Rh6 {[%clk 0:02:02.9]} 29.
Ng5 {[%clk 0:01:14.3]} 29... Rf2 {[%clk 0:01:59.3]} 30. Rd1 {[%clk 0:01:15.1]}
30... Bc4 {[%clk 0:01:57.2]} 31. Rd2 {[%clk 0:01:10.7]} 31... Rhf6 {[%clk
0:01:58.2]} 32. Rhd1 {[%clk 0:00:59.7]} 32... Rxd2 {[%clk 0:01:54.1]} 33. Rxd2
{[%clk 0:01:00.4]} 33... e4 {[%clk 0:01:51.9]} 34. b4 {[%clk 0:00:49.1]} 34...
a4 {[%clk 0:01:47.9]} 35. Kb2 {[%clk 0:00:45.3]} 35... Bd3 {[%clk 0:01:39.4]}
36. Rg2 {[%clk 0:00:44.6]} 36... Rf1 {[%clk 0:01:24.3]} 37. bxc5 {[%clk
0:00:43.2]} 37... bxc5 {[%clk 0:01:25.2]} 38. Ne6 {[%clk 0:00:44]} 38... c4
{[%clk 0:01:23.3]} 39. Nd4 {[%clk 0:00:37.4]} 39... Kf7 {[%clk 0:01:09.6]} 40.
h4 {[%clk 0:00:37.9]} 40... g6 {[%clk 0:00:57.5]} 41. h5 {[%clk 0:00:37]} 41...
gxh5 {[%clk 0:00:58.9]} 42. gxh5 {[%clk 0:00:37.9]} 42... Rh1 {[%clk 0:01:00.5]}
43. Rg5 {[%clk 0:00:37]} 43... Rh3 {[%clk 0:01:00.6]} 44. Rxd5 {[%clk
0:00:30.1]} 44... Rxe3 {[%clk 0:01:01.2]} 45. Rd7+ {[%clk 0:00:30]} 45... Kf6
{[%clk 0:00:58]} 46. h6 {[%clk 0:00:30.4]} 46... Rh3 {[%clk 0:00:59.2]} 47. Rd6+
{[%clk 0:00:26.5]} 47... Kg5 {[%clk 0:00:57.8]} 48. Ne6+ {[%clk 0:00:25.7]}
48... Kg4 {[%clk 0:00:55.7]} 49. Nc5 {[%clk 0:00:24.5]} 49... e3 {[%clk
0:00:53.8]} 50. Rd4+ {[%clk 0:00:18.5]} 50... Kf3 {[%clk 0:00:52.2]} 51. Nxd3
{[%clk 0:00:18.7]} 51... cxd3 {[%clk 0:00:54.1]} 52. Rxd3 {[%clk 0:00:19.8]}
52... Rh2+ {[%clk 0:00:52.4]} 53. Kc1 {[%clk 0:00:19.3]} 53... Rxh6 {[%clk
0:00:52.4]} 54. c4 {[%clk 0:00:16.8]} 54... Ke4 {[%clk 0:00:50.9]} 55. Rd1
{[%clk 0:00:15.3]} 55... Rc6 {[%clk 0:00:49.6]} 56. Rh1 {[%clk 0:00:13.9]} 56...
Rxc4+ {[%clk 0:00:50.4]} 57. Kb2 {[%clk 0:00:14.6]} 57... e2 {[%clk 0:00:50]}
58. Rh4+ {[%clk 0:00:11.3]} 58... Kd3 {[%clk 0:00:49.9]} 0-1

[Event "*** Titled Tuesday 3|2 Blitz"]
[Site "Chess.com"]
[Date "2016.02.02"]
[Round "4"]
[White "DaPazz"]
[Black "Jahonas"]
[Result "1/2-1/2"]
[WhiteElo "1993"]
[BlackElo "2195"]
[TimeControl "180+2"]
[EndTime "17:46:29 PST"]
[Termination "Game drawn - insufficient material"]

1. d4 {[%clk 0:03:01.9]} 1... c5 {[%clk 0:03:00.2]} 2. dxc5 {[%clk 0:03:00.5]}
2... Na6 {[%clk 0:02:59.9]} 3. Be3 {[%clk 0:02:59.2]} 3... e6 {[%clk 0:02:54.5]}
4. g3 {[%clk 0:02:56]} 4... Nxc5 {[%clk 0:02:43.6]} 5. Bg2 {[%clk 0:02:56.5]}
5... d5 {[%clk 0:02:42.3]} 6. Nf3 {[%clk 0:02:56.3]} 6... Nf6 {[%clk 0:02:42.1]}
7. O-O {[%clk 0:02:56.4]} 7... Be7 {[%clk 0:02:43.2]} 8. Bd4 {[%clk 0:02:56.8]}
8... O-O {[%clk 0:02:43.9]} 9. b3 {[%clk 0:02:57.3]} 9... b6 {[%clk 0:02:44.5]}
10. c4 {[%clk 0:02:55.8]} 10... Bb7 {[%clk 0:02:45.3]} 11. Ne5 {[%clk
0:02:56.1]} 11... Qc7 {[%clk 0:02:37.6]} 12. Nc3 {[%clk 0:02:53.9]} 12... dxc4
{[%clk 0:02:35.2]} 13. Bxb7 {[%clk 0:02:51.2]} 13... Qxb7 {[%clk 0:02:34.4]} 14.
Nxc4 {[%clk 0:02:41.7]} 14... Rfd8 {[%clk 0:02:34.6]} 15. e3 {[%clk 0:02:38.9]}
15... Nce4 {[%clk 0:02:33.4]} 16. Nxe4 {[%clk 0:02:35.9]} 16... Qxe4 {[%clk
0:02:29.4]} 17. Qb1 {[%clk 0:02:33.9]} 17... Qg4 {[%clk 0:02:23.8]} 18. Ne5
{[%clk 0:02:30.7]} 18... Qh3 {[%clk 0:02:20.3]} 19. f3 {[%clk 0:02:13]} 19...
Rd5 {[%clk 0:02:14.4]} 20. Qb2 {[%clk 0:02:03]} 20... Bc5 {[%clk 0:01:38.6]} 21.
Bxc5 {[%clk 0:01:58.2]} 21... bxc5 {[%clk 0:01:38.8]} 22. e4 {[%clk 0:01:47]}
22... Rd6 {[%clk 0:01:06.3]} 23. Nc4 {[%clk 0:01:41.6]} 23... Rd4 {[%clk
0:01:03.4]} 24. Rad1 {[%clk 0:01:24.7]} 24... Rad8 {[%clk 0:01:03.1]} 25. Rxd4
{[%clk 0:01:25.5]} 25... Rxd4 {[%clk 0:01:02.3]} 26. Qg2 {[%clk 0:01:20.8]}
26... Qxg2+ {[%clk 0:00:59]} 27. Kxg2 {[%clk 0:01:21.2]} 27... Nd7 {[%clk
0:01:00]} 28. Rf2 {[%clk 0:01:15.3]} 28... Nb6 {[%clk 0:00:53.1]} 29. Na5 {[%clk
0:01:06.1]} 29... g5 {[%clk 0:00:41.5]} 30. Nc6 {[%clk 0:01:02.2]} 30... Rd7
{[%clk 0:00:32.6]} 31. Rc2 {[%clk 0:01:00.4]} 31... Kg7 {[%clk 0:00:29]} 32. h3
{[%clk 0:00:59.3]} 32... h5 {[%clk 0:00:29.6]} 33. Kf2 {[%clk 0:00:55.8]} 33...
a6 {[%clk 0:00:26.2]} 34. Ke2 {[%clk 0:00:52.1]} 34... Rc7 {[%clk 0:00:22.7]}
35. Ne5 {[%clk 0:00:50.1]} 35... Kf6 {[%clk 0:00:19.5]} 36. f4 {[%clk
0:00:48.2]} 36... h4 {[%clk 0:00:18.2]} 37. Ng4+ {[%clk 0:00:42.3]} 37... Kg6
{[%clk 0:00:16.6]} 38. Ne5+ {[%clk 0:00:41]} 38... Kf6 {[%clk 0:00:17.6]} 39.
Ng4+ {[%clk 0:00:41.3]} 39... Kg6 {[%clk 0:00:18.9]} 40. gxh4 {[%clk 0:00:42.5]}
40... gxf4 {[%clk 0:00:15.4]} 41. Kf3 {[%clk 0:00:43.5]} 41... f5 {[%clk
0:00:15.1]} 42. h5+ {[%clk 0:00:42.2]} 42... Kxh5 {[%clk 0:00:15.2]} 43. exf5
{[%clk 0:00:43.4]} 43... exf5 {[%clk 0:00:16.1]} 44. Nf6+ {[%clk 0:00:43.1]}
44... Kg6 {[%clk 0:00:16.4]} 45. Ne8 {[%clk 0:00:43.1]} 45... Re7 {[%clk
0:00:13.7]} 46. Nd6 {[%clk 0:00:43.6]} 46... Re3+ {[%clk 0:00:13.9]} 47. Kxf4
{[%clk 0:00:44.6]} 47... Rxh3 {[%clk 0:00:14.7]} 48. Rg2+ {[%clk 0:00:43.4]}
48... Kf6 {[%clk 0:00:14.8]} 49. Nxf5 {[%clk 0:00:43.9]} 49... Nd5+ {[%clk
0:00:14.6]} 50. Ke4 {[%clk 0:00:44.5]} 50... Nc3+ {[%clk 0:00:14.7]} 51. Kf4
{[%clk 0:00:45.3]} 51... Nd5+ {[%clk 0:00:12.6]} 52. Kg4 {[%clk 0:00:46.5]}
52... Rc3 {[%clk 0:00:12]} 53. Rf2 {[%clk 0:00:46.9]} 53... Ke5 {[%clk
0:00:12.2]} 54. Re2+ {[%clk 0:00:47.5]} 54... Kf6 {[%clk 0:00:13.4]} 55. Nd6
{[%clk 0:00:48.3]} 55... Re3 {[%clk 0:00:09.5]} 56. Ne4+ {[%clk 0:00:48.5]}
56... Ke5 {[%clk 0:00:09.7]} 57. Rxe3 {[%clk 0:00:49.8]} 57... Nxe3+ {[%clk
0:00:10.6]} 58. Kf3 {[%clk 0:00:50.5]} 58... Nd1 {[%clk 0:00:11]} 59. Nxc5
{[%clk 0:00:52]} 59... Nc3 {[%clk 0:00:12.1]} 60. Nxa6 {[%clk 0:00:53.5]} 60...
Nxa2 {[%clk 0:00:13.2]} 61. b4 {[%clk 0:00:55.4]} 61... Nxb4 {[%clk 0:00:13.9]}
62. Nxb4 {[%clk 0:00:57.1]} 1/2-1/2